Workbook

Sheet Data_DF_WOLGHA
A1: Exercise: Temperature drop calculation in saturated oil well, Prof. Milan Stanko (NTNU)
A3: GOR | B3: [Sm3/Sm3] | C3: 155.1202137
A4: Pipe ID | B4: [m] | C4: 0.15 | E4: deno_sc [kg/m3] | F4: 848.1244804
A5: Pipe cross section area | B5: [m2] | C5: =0.25*PI()*(C4^2) -> 0.01767145868 | E5: deng_sc [kg/m3] | F5: 0.8389404633
A6: Pipe roughness | B6: [m] | C6: 1.5e-05
A7: Pipe inclination from hor | B7: [deg] | C7: 90 | E7: m [kg/s] | F7: =(C8*F4+C9*F5)/(3600*24) -> 11.32246649
A8: qo | B8: [Sm3/d] | C8: 1000
A9: qg | B9: [Sm3/d] | C9: =C8*C3 -> 155120.2137
D10: BO table column | E10: 3 | F10: 4 | G10: 5 | H10: 6 | I10: 8 | J10: 10 | K10: 7 | L10: 9 | M10: 11 | S10: Woldesemayat and Ghajar | U10: 12 | V10: 13
B11: TVD [m] | C11: T [C] | D11: p[bara] | E11: Rs [Sm3/Sm3] | F11: rs [Sm3/Sm3] | G11: Bo [m3/Sm3] | H11: Bg [m3/Sm3] | I11: deng [kg/m3] | J11: viscg [cp] | K11: deno [kg/m3] | L11: viso [cp] | M11: sigma_o_g [N/m] | N11: qo [m3/d] | O11: qg[m3/d] | P11: uso [m/s] | Q11: usg [m/s] | R11: lambdag[-] | S11: e[-] | T11: dp/dx [bara/m] | U11: ho [kJ/kg] | V11: hg [kJ/kg] | W11: xg [-] | X11: hm [kJ/kg] | Y11: Tform [C] | Z11: U [W/m2 K] | AA11: dQ/dL [W/m] | AB11: Q [W] - sect | AC11: Residual-Energy eq. [kJ/kg]
B12: 0 | C12: 50 | D12: 28 | E12: =TwoDimInterpol($D12,$C12,E$10,BO_Tables!$A$3:$K$202,0,0) -> 16.21260993 | F12: =TwoDimInterpol($D12,$C12,F$10,BO_Tables!$A$3:$K$202,0,0) -> 0 | G12: =TwoDimInterpol($D12,$C12,G$10,BO_Tables!$A$3:$K$202,0,0) -> 1.066084662 | H12: =TwoDimInterpol($D12,$C12,H$10,BO_Tables!$A$3:$K$202,0,0) -> 0.03808043386 | I12: =TwoDimInterpol($D12,$C12,I$10,BO_Tables!$A$3:$K$202,0,0) -> 21.15974341 | J12: =TwoDimInterpol($D12,$C12,J$10,BO_Tables!$A$3:$K$202,0,0) -> 0.01259193703 | K12: =TwoDimInterpol($D12,$C12,K$10,BO_Tables!$A$3:$K$202,0,0) -> 813.2809105 | L12: =TwoDimInterpol($D12,$C12,L$10,BO_Tables!$A$3:$K$202,0,0) -> 2.0734487 | M12: =TwoDimInterpol($D12,$C12,M$10,BO_Tables!$A$3:$K$202,0,0) -> 0 | N12: =qo_local(E12,F12,G12,$C$9,$C$8) -> 1066.084662 | O12: =qg_local(E12,F12,H12,$C$9,$C$8) -> 5289.661818 | P12: =N12/($C$5*3600*24) -> 0.698241332 | Q12: =O12/($C$5*3600*24) -> 3.464509571 | R12: =O12/(N12+O12) -> 0.8322644452 | S12: =e_wolgha(P12,Q12,K12,I12,M12,$C$7,D12,$C$4) -> 0.7525113537 | T12: =dpdx_mpf($C$6,L12,J12,K12,I12,P12,Q12,$C$4,$C$7,S12) -> 0.02234684979 | Y12: 20 | Z12: 9
B13: 500 | C13: =lininterpol($B$12,$C$12,$B$19,$C$19,B13) -> 57.14285714 | D13: =D12+T12*(B13-B12) -> 39.1734249 | E13: =TwoDimInterpol($D13,$C13,E$10,BO_Tables!$A$3:$K$202,0,0) -> 21.23771501 | F13: =TwoDimInterpol($D13,$C13,F$10,BO_Tables!$A$3:$K$202,0,0) -> 1.166851542e-08 | G13: =TwoDimInterpol($D13,$C13,G$10,BO_Tables!$A$3:$K$202,0,0) -> 1.083528158 | H13: =TwoDimInterpol($D13,$C13,H$10,BO_Tables!$A$3:$K$202,0,0) -> 0.0282281246 | I13: =TwoDimInterpol($D13,$C13,I$10,BO_Tables!$A$3:$K$202,0,0) -> 29.37474441 | J13: =TwoDimInterpol($D13,$C13,J$10,BO_Tables!$A$3:$K$202,0,0) -> 0.01311111619 | K13: =TwoDimInterpol($D13,$C13,K$10,BO_Tables!$A$3:$K$202,0,0) -> 804.3566653 | L13: =TwoDimInterpol($D13,$C13,L$10,BO_Tables!$A$3:$K$202,0,0) -> 1.72368685 | M13: =TwoDimInterpol($D13,$C13,M$10,BO_Tables!$A$3:$K$202,0,0) -> 12.68963258 | N13: =qo_local(E13,F13,G13,$C$9,$C$8) -> 1083.526465 | O13: =qg_local(E13,F13,H13,$C$9,$C$8) -> 3779.252791 | P13: =N13/($C$5*3600*24) -> 0.7096649915 | Q13: =O13/($C$5*3600*24) -> 2.475254168 | R13: =O13/(N13+O13) -> 0.7771795905 | S13: =e_wolgha(P13,Q13,K13,I13,M13,$C$7,D13,$C$4) -> 0.5343757635 | T13: =dpdx_mpf($C$6,L13,J13,K13,I13,P13,Q13,$C$4,$C$7,S13) -> 0.03894940415 | Z13: 9
B14: 1000 | C14: =lininterpol($B$12,$C$12,$B$19,$C$19,B14) -> 64.28571429 | D14: =D13+T13*(B14-B13) -> 58.64812697 | E14: =TwoDimInterpol($D14,$C14,E$10,BO_Tables!$A$3:$K$202,0,0) -> 29.98000366 | F14: =TwoDimInterpol($D14,$C14,F$10,BO_Tables!$A$3:$K$202,0,0) -> 6.628719276e-08 | G14: =TwoDimInterpol($D14,$C14,G$10,BO_Tables!$A$3:$K$202,0,0) -> 1.109301455 | H14: =TwoDimInterpol($D14,$C14,H$10,BO_Tables!$A$3:$K$202,0,0) -> 0.0183178682 | I14: =TwoDimInterpol($D14,$C14,I$10,BO_Tables!$A$3:$K$202,0,0) -> 43.92936672 | J14: =TwoDimInterpol($D14,$C14,J$10,BO_Tables!$A$3:$K$202,0,0) -> 0.01388897763 | K14: =TwoDimInterpol($D14,$C14,K$10,BO_Tables!$A$3:$K$202,0,0) -> 792.5111642 | L14: =TwoDimInterpol($D14,$C14,L$10,BO_Tables!$A$3:$K$202,0,0) -> 1.410701144 | M14: =TwoDimInterpol($D14,$C14,M$10,BO_Tables!$A$3:$K$202,0,0) -> 17.67541385 | N14: =qo_local(E14,F14,G14,$C$9,$C$8) -> 1109.292253 | O14: =qg_local(E14,F14,H14,$C$9,$C$8) -> 2292.306429 | P14: =N14/($C$5*3600*24) -> 0.7265405163 | Q14: =O14/($C$5*3600*24) -> 1.501365841 | R14: =O14/(N14+O14) -> 0.6738909093 | S14: =e_wolgha(P14,Q14,K14,I14,M14,$C$7,D14,$C$4) -> 0.4160105024 | T14: =dpdx_mpf($C$6,L14,J14,K14,I14,P14,Q14,$C$4,$C$7,S14) -> 0.04772944652 | Z14: 9
B15: 1500 | C15: =lininterpol($B$12,$C$12,$B$19,$C$19,B15) -> 71.42857143 | D15: 82.51285023 | E15: =TwoDimInterpol($D15,$C15,E$10,BO_Tables!$A$3:$K$202,0,0) -> 40.21660676 | F15: =TwoDimInterpol($D15,$C15,F$10,BO_Tables!$A$3:$K$202,0,0) -> 3.662048172e-07 | G15: =TwoDimInterpol($D15,$C15,G$10,BO_Tables!$A$3:$K$202,0,0) -> 1.139240508 | H15: =TwoDimInterpol($D15,$C15,H$10,BO_Tables!$A$3:$K$202,0,0) -> 0.01298751245 | I15: =TwoDimInterpol($D15,$C15,I$10,BO_Tables!$A$3:$K$202,0,0) -> 62.00008012 | J15: =TwoDimInterpol($D15,$C15,J$10,BO_Tables!$A$3:$K$202,0,0) -> 0.01488778059 | K15: =TwoDimInterpol($D15,$C15,K$10,BO_Tables!$A$3:$K$202,0,0) -> 779.2021182 | L15: =TwoDimInterpol($D15,$C15,L$10,BO_Tables!$A$3:$K$202,0,0) -> 1.162574414 | M15: =TwoDimInterpol($D15,$C15,M$10,BO_Tables!$A$3:$K$202,0,0) -> 15.93263185 | N15: =qo_local(E15,F15,G15,$C$9,$C$8) -> 1139.19257 | O15: =qg_local(E15,F15,H15,$C$9,$C$8) -> 1492.334005 | P15: 0.7461239863 | Q15: 0.9774170105 | R15: 0.5670982079 | S15: =e_wolgha(P15,Q15,K15,I15,M15,$C$7,D15,$C$4) -> 0.3295360154 | T15: =dpdx_mpf($C$6,L15,J15,K15,I15,P15,Q15,$C$4,$C$7,S15) -> 0.05371677669 | Z15: 9
B16: 2000 | C16: =lininterpol($B$12,$C$12,$B$19,$C$19,B16) -> 78.57142857 | D16: 109.3712386 | E16: =TwoDimInterpol($D16,$C16,E$10,BO_Tables!$A$3:$K$202,0,0) -> 51.55479787 | F16: =TwoDimInterpol($D16,$C16,F$10,BO_Tables!$A$3:$K$202,0,0) -> 6.063699076e-06 | G16: =TwoDimInterpol($D16,$C16,G$10,BO_Tables!$A$3:$K$202,0,0) -> 1.173052674 | H16: =TwoDimInterpol($D16,$C16,H$10,BO_Tables!$A$3:$K$202,0,0) -> 0.009845642508 | I16: =TwoDimInterpol($D16,$C16,I$10,BO_Tables!$A$3:$K$202,0,0) -> 82.42391878 | J16: =TwoDimInterpol($D16,$C16,J$10,BO_Tables!$A$3:$K$202,0,0) -> 0.01611354411 | K16: =TwoDimInterpol($D16,$C16,K$10,BO_Tables!$A$3:$K$202,0,0) -> 764.6651138 | L16: =TwoDimInterpol($D16,$C16,L$10,BO_Tables!$A$3:$K$202,0,0) -> 0.970166985 | M16: =TwoDimInterpol($D16,$C16,M$10,BO_Tables!$A$3:$K$202,0,0) -> 14.33175744 | N16: =qo_local(E16,F16,G16,$C$9,$C$8) -> 1172.315779 | O16: =qg_local(E16,F16,H16,$C$9,$C$8) -> 1019.986922 | P16: 0.767818317 | Q16: 0.66804922 | R16: 0.4652582517 | S16: =e_wolgha(P16,Q16,K16,I16,M16,$C$7,D16,$C$4) -> 0.2596451022 | T16: =dpdx_mpf($C$6,L16,J16,K16,I16,P16,Q16,$C$4,$C$7,S16) -> 0.05805340416 | Z16: 9
B17: 2500 | C17: =lininterpol($B$12,$C$12,$B$19,$C$19,B17) -> 85.71428571 | D17: 138.3979407 | E17: =TwoDimInterpol($D17,$C17,E$10,BO_Tables!$A$3:$K$202,0,0) -> 63.78846993 | F17: =TwoDimInterpol($D17,$C17,F$10,BO_Tables!$A$3:$K$202,0,0) -> 2.001980358e-05 | G17: =TwoDimInterpol($D17,$C17,G$10,BO_Tables!$A$3:$K$202,0,0) -> 1.21059873 | H17: =TwoDimInterpol($D17,$C17,H$10,BO_Tables!$A$3:$K$202,0,0) -> 0.007900668471 | I17: =TwoDimInterpol($D17,$C17,I$10,BO_Tables!$A$3:$K$202,0,0) -> 104.0883119 | J17: =TwoDimInterpol($D17,$C17,J$10,BO_Tables!$A$3:$K$202,0,0) -> 0.01755823138 | K17: =TwoDimInterpol($D17,$C17,K$10,BO_Tables!$A$3:$K$202,0,0) -> 749.0915711 | L17: =TwoDimInterpol($D17,$C17,L$10,BO_Tables!$A$3:$K$202,0,0) -> 0.8137638744 | M17: =TwoDimInterpol($D17,$C17,M$10,BO_Tables!$A$3:$K$202,0,0) -> 12.88566279 | N17: =qo_local(E17,F17,G17,$C$9,$C$8) -> 1208.382388 | O17: =qg_local(E17,F17,H17,$C$9,$C$8) -> 722.5044903 | P17: 0.7914404533 | Q17: 0.4732105392 | R17: 0.3741827129 | S17: =e_wolgha(P17,Q17,K17,I17,M17,$C$7,D17,$C$4) -> 0.2042723604 | T17: =dpdx_mpf($C$6,L17,J17,K17,I17,P17,Q17,$C$4,$C$7,S17) -> 0.0609478324 | Z17: 9
B18: 3000 | C18: =lininterpol($B$12,$C$12,$B$19,$C$19,B18) -> 92.85714286 | D18: 168.8718569 | E18: =TwoDimInterpol($D18,$C18,E$10,BO_Tables!$A$3:$K$202,0,0) -> 76.9340637 | F18: =TwoDimInterpol($D18,$C18,F$10,BO_Tables!$A$3:$K$202,0,0) -> 4.032953751e-05 | G18: =TwoDimInterpol($D18,$C18,G$10,BO_Tables!$A$3:$K$202,0,0) -> 1.252209768 | H18: =TwoDimInterpol($D18,$C18,H$10,BO_Tables!$A$3:$K$202,0,0) -> 0.006647922361 | I18: =TwoDimInterpol($D18,$C18,I$10,BO_Tables!$A$3:$K$202,0,0) -> 126.0279548 | J18: =TwoDimInterpol($D18,$C18,J$10,BO_Tables!$A$3:$K$202,0,0) -> 0.01919830489 | K18: =TwoDimInterpol($D18,$C18,K$10,BO_Tables!$A$3:$K$202,0,0) -> 732.5597674 | L18: =TwoDimInterpol($D18,$C18,L$10,BO_Tables!$A$3:$K$202,0,0) -> 0.6864038148 | M18: =TwoDimInterpol($D18,$C18,M$10,BO_Tables!$A$3:$K$202,0,0) -> 11.58268515 | N18: =qo_local(E18,F18,G18,$C$9,$C$8) -> 1248.248997 | O18: =qg_local(E18,F18,H18,$C$9,$C$8) -> 521.3931896 | P18: 0.8175514323 | Q18: 0.3414909606 | R18: 0.2946319847 | S18: =e_wolgha(P18,Q18,K18,I18,M18,$C$7,D18,$C$4) -> 0.1597396574 | T18: =dpdx_mpf($C$6,L18,J18,K18,I18,P18,Q18,$C$4,$C$7,S18) -> 0.06272610927 | Z18: 9
B19: 3500 | C19: 100 | D19: 200.2349115 | E19: =TwoDimInterpol($D19,$C19,E$10,BO_Tables!$A$3:$K$202,0,0) -> 91.17473892 | F19: =TwoDimInterpol($D19,$C19,F$10,BO_Tables!$A$3:$K$202,0,0) -> 6.66882716e-05 | G19: =TwoDimInterpol($D19,$C19,G$10,BO_Tables!$A$3:$K$202,0,0) -> 1.298716688 | H19: =TwoDimInterpol($D19,$C19,H$10,BO_Tables!$A$3:$K$202,0,0) -> 0.005812400489 | I19: =TwoDimInterpol($D19,$C19,I$10,BO_Tables!$A$3:$K$202,0,0) -> 147.6531631 | J19: =TwoDimInterpol($D19,$C19,J$10,BO_Tables!$A$3:$K$202,0,0) -> 0.02101333858 | K19: =TwoDimInterpol($D19,$C19,K$10,BO_Tables!$A$3:$K$202,0,0) -> 715.0118477 | L19: =TwoDimInterpol($D19,$C19,L$10,BO_Tables!$A$3:$K$202,0,0) -> 0.582443839 | M19: =TwoDimInterpol($D19,$C19,M$10,BO_Tables!$A$3:$K$202,0,0) -> 10.41199519 | N19: =qo_local(E19,F19,G19,$C$9,$C$8) -> 1293.144543 | O19: =qg_local(E19,F19,H19,$C$9,$C$8) -> 373.9504344 | P19: 0.8469561573 | Q19: 0.2449220581 | R19: 0.2243126153 | S19: =e_wolgha(P19,Q19,K19,I19,M19,$C$7,D19,$C$4) -> 0.1222441582 | T19: =dpdx_mpf($C$6,L19,J19,K19,I19,P19,Q19,$C$4,$C$7,S19) -> 0.06369089324 | Y19: 100 | Z19: 9
AB20: ERROR

Sheet BO_Tables
A1: p | B1: T | C1: Rs | D1: rs | E1: Bo | F1: Bg | G1: deno | H1: deng | I1: visco | J1: viscg | K1: stog | L1: ho | M1: hg
A2: [bara] | B2: [C] | C2: [Sm3/Sm3] | D2: [Sm3/Sm3] | E2: [m3/Sm3] | F2: [m3/Sm3] | G2: [kg/m3] | H2: [kg/m3] | I2: [cp] | J2: [cp] | K2: [N/m] | L2: [kJ/kg] | M2: [kJ/kg]
A3: 300 | B3: 148 | C3: 142.3936649 | D3: 0.0002396336034 | E3: 1.52011743 | F3: 0.004952416907 | G3: 637.1052315 | H3: 201.2958811 | I3: 0.2844359034 | J3: 0.02750124385 | K3: 6.686151182 | L3: -2108.259672 | M3: -3529.991197
A4: 300 | B4: 137.1111111 | C4: 143.2902162 | D4: 0.0002134492702 | E4: 1.499180882 | F4: 0.004767184863 | G4: 646.4584428 | H4: 204.4762146 | I4: 0.3129411033 | J4: 0.0274566685 | K4: 6.983254486 | L4: -2136.361397 | M4: -3602.305401
A5: 300 | B5: 126.2222222 | C5: 144.6145865 | D5: 0.000190318736 | E5: 1.480615135 | F5: 0.004583875818 | G5: 655.2501271 | H5: 208.346274 | I5: 0.3457754995 | J5: 0.02749397063 | K5: 7.276863521 | L5: -2164.674616 | M5: -3672.099795
A6: 300 | B6: 115.3333333 | C6: 146.3682491 | D6: 0.0001699884792 | E6: 1.463424987 | F6: 0.00440228619 | G6: 663.8681229 | H6: 212.9496358 | I6: 0.3780168595 | J6: 0.02762254892 | K6: 7.562993166 | L6: -2193.206385 | M6: -3739.337709
A7: 300 | B7: 104.4444444 | C7: 148.5564868 | D7: 0.0001522534 | E7: 1.44623507 | F7: 0.004222287884 | G7: 672.9235391 | H7: 218.3441421 | I7: 0.4159212324 | J7: 0.02785542686 | K7: 7.836992192 | L7: -2221.968272 | M7: -3803.950551
A8: 300 | B8: 93.55555556 | C8: 151.1870144 | D8: 0.0001369504411 | E8: 1.430071468 | F8: 0.004043840473 | G8: 681.9461486 | H8: 224.602877 | I8: 0.4624874922 | J8: 0.02821017534 | K8: 8.101901121 | L8: -2250.974275 | M8: -3865.830462
A9: 300 | B9: 82.66666667 | C9: 154.2681817 | D9: 0.0001239549148 | E9: 1.415472274 | F9: 0.003867011414 | G9: 690.6563864 | H9: 231.81505 | I9: 0.5140604792 | J9: 0.02871019688 | K9: 8.371698762 | L9: -2280.238027 | M9: -3924.821594
A10: 300 | B10: 71.77777778 | C10: 155.1202137 | D10: 0 | E10: 1.394585463 | F10: 0 | G10: 701.4708891 | H10: 0 | I10: 0.5801280373 | J10: 0.02950519318 | K10: 0 | L10: -2305.534718 | M10: 0
A11: 300 | B11: 60.88888889 | C11: 155.1202137 | D11: 0 | E11: 1.371962074 | F11: 0 | G11: 713.038008 | H11: 0 | I11: 0.6616275893 | J11: 0.03062750449 | K11: 0 | L11: -2328.999834 | M11: 0
A12: 300 | B12: 50 | C12: 155.1202137 | D12: 0 | E12: 1.350188042 | F12: 0 | G12: 724.5369341 | H12: 0 | I12: 0.7446243258 | J12: 0.03213250751 | K12: 0 | L12: -2351.969739 | M12: 0
A13: 285.6842105 | B13: 148 | C13: 132.5471136 | D13: 0.0002237650245 | E13: 1.495695486 | F13: 0.005142038626 | G13: 642.4334182 | H13: 191.5534187 | I13: 0.2969039912 | J13: 0.02651941572 | K13: 6.979301235 | L13: -2094.126958 | M13: -3547.644161
A14: 285.6842105 | B14: 137.1111111 | C14: 133.6082682 | D14: 0.0001983130331 | E14: 1.476057341 | F14: 0.004948468277 | G14: 651.5262054 | H14: 194.6920989 | I14: 0.3264451345 | J14: 0.026454135 | K14: 7.281317062 | L14: -2122.441915 | M14: -3619.912733
A15: 285.6842105 | B15: 126.2222222 | C15: 135.0677318 | D15: 0.000175788519 | E15: 1.457961045 | F15: 0.004756599891 | G15: 660.3787274 | H15: 198.4889089 | I15: 0.3606808634 | J15: 0.02646283239 | K15: 7.57954861 | L15: -2150.934005 | M15: -3689.791376
A16: 285.6842105 | B16: 115.3333333 | C16: 136.9315548 | D16: 0.0001559583388 | E16: 1.441044811 | F16: 0.00456621063 | G16: 669.1245822 | H16: 202.9906074 | I16: 0.3943449124 | J16: 0.02655430614 | K16: 7.869871638 | L16: -2179.616699 | M16: -3757.243376
A17: 285.6842105 | B17: 104.4444444 | C17: 139.2094541 | D17: 0.0001386319995 | E17: 1.424199747 | F17: 0.00437714442 | G17: 678.2707836 | H17: 208.258608 | I17: 0.4339795163 | J17: 0.02674073793 | K17: 8.147460792 | L17: -2208.508061 | M17: -3822.200823
A18: 285.6842105 | B18: 93.55555556 | C18: 141.9137199 | D18: 0.0001236561596 | E18: 1.408464949 | F18: 0.004189325442 | G18: 687.3289143 | H18: 214.370468 | I18: 0.482749903 | J18: 0.02703858412 | K18: 8.415251211 | L18: -2237.629039 | M18: -3884.556767
A19: 285.6842105 | B19: 82.66666667 | C19: 145.0578047 | D19: 0.00011091129 | E19: 1.394359088 | F19: 0.004002780432 | G19: 696.0218703 | H19: 221.4213624 | I19: 0.5368166513 | J19: 0.02746985929 | K19: 8.687215926 | L19: -2267.001179 | M19: -3944.15638
A20: 285.6842105 | B20: 71.77777778 | C20: 148.6540775 | D20: 0.0001003114807 | E20: 1.381759054 | F20: 0.003817671578 | G20: 704.3763068 | H20: 229.5253656 | I20: 0.597464321 | J20: 0.028063902 | K20: 8.946599402 | L20: -2296.642976 | M20: -4000.785078
A21: 285.6842105 | B21: 60.88888889 | C21: 152.7106565 | D21: 9.180655123e-05 | E21: 1.370554108 | F21: 0.003634341781 | G21: 712.4163443 | H21: 238.8156497 | I21: 0.6668611666 | J21: 0.02885976459 | K21: 9.190206243 | L21: -2326.564783 | M21: -4054.155503
A22: 285.6842105 | B22: 50 | C22: 155.1202137 | D22: 0 | E22: 1.354959254 | F22: 0 | G22: 721.9856255 | H22: 0 | I22: 0.740663851 | J22: 0.03002432226 | K22: 0 | L22: -2353.399653 | M22: 0
A23: 271.3684211 | B23: 148 | C23: 123.185411 | D23: 0.000208965568 | E23: 1.47266803 | F23: 0.0053568627 | G23: 647.5666573 | H23: 181.8290081 | I23: 0.3095549805 | J23: 0.02558607983 | K23: 7.282647513 | L23: -2080.536582 | M23: -3563.682688
A24: 271.3684211 | B24: 137.1111111 | C24: 124.378035 | D24: 0.0001841374779 | E24: 1.453577965 | F24: 0.005154030415 | G24: 656.69155 | H24: 184.8971611 | I24: 0.3402829913 | J24: 0.02549896809 | K24: 7.589984256 | L24: -2109.020633 | M24: -3635.979425
A25: 271.3684211 | B25: 126.2222222 | C25: 125.9427804 | D25: 0.000162131381 | E25: 1.435766163 | F25: 0.004952693138 | G25: 665.6705948 | H25: 188.5911841 | I25: 0.3760251498 | J25: 0.02547832076 | K25: 7.893252123 | L25: -2137.650775 | M25: -3706.013616
A26: 271.3684211 | B26: 115.3333333 | C26: 127.8894546 | D26: 0.0001427316556 | E26: 1.419131642 | F26: 0.004752600071 | G26: 674.5271468 | H26: 192.9601853 | I26: 0.4111961031 | J26: 0.02553227719 | K26: 8.188186934 | L26: -2166.44593 | M26: -3773.749372
A27: 271.3684211 | B27: 104.4444444 | C27: 130.2315058 | D27: 0.0001257599636 | E27: 1.402687313 | F27: 0.004553557122 | G27: 683.7222165 | H27: 198.0682725 | I27: 0.4526522979 | J27: 0.02567208184 | K27: 8.469783822 | L27: -2195.429859 | M27: -3839.120695
A28: 271.3684211 | B28: 93.55555556 | C28: 132.9852089 | D28: 0.0001110701713 | E28: 1.387428684 | F28: 0.004355441082 | G28: 692.7748193 | H28: 203.9964997 | I28: 0.5037462416 | J28: 0.02591297762 | K28: 8.740865728 | L28: -2224.62983 | M28: -3902.023722
A29: 271.3684211 | B29: 82.66666667 | C29: 136.1685089 | D29: 9.854574818e-05 | E29: 1.373838845 | F29: 0.004158223316 | G29: 701.4189618 | H29: 210.8450787 | I29: 0.5604552963 | J29: 0.02627545563 | K29: 9.015400862 | L29: -2254.074669 | M29: -3962.306819
A30: 271.3684211 | B30: 71.77777778 | C30: 139.7991844 | D30: 8.809955862e-05 | E30: 1.361787341 | F30: 0.003962005574 | G30: 709.6873264 | H30: 218.7355119 | I30: 0.6241274474 | J30: 0.02678699801 | K30: 9.276264897 | L30: -2283.791652 | M30: -4019.758412
A31: 271.3684211 | B31: 60.88888889 | C31: 143.8920133 | D31: 7.967667603e-05 | E31: 1.351159683 | F31: 0.00376707111 | G31: 717.6093805 | H31: 227.8120488 | I31: 0.6970496648 | J31: 0.02748448744 | K31: 9.519981224 | L31: -2313.801793 | M31: -4074.091897
A32: 271.3684211 | B32: 50 | C32: 148.4544364 | D32: 7.326038407e-05 | E32: 1.341843046 | F32: 0.003573953595 | G32: 725.2154998 | H32: 238.2412262 | I32: 0.7654828347 | J32: 0.02841752369 | K32: 9.744981217 | L32: -2344.112792 | M32: -4124.928316
A33: 257.0526316 | B33: 148 | C33: 114.2626142 | D33: 0.0001951727562 | E33: 1.450287667 | F33: 0.005601147045 | G33: 652.7924806 | H33: 172.1124416 | I33: 0.3224948367 | J33: 0.02469818462 | K33: 7.597141809 | L33: -2067.44319 | M33: -3578.069567
A34: 257.0526316 | B34: 137.1111111 | C34: 115.557817 | D34: 0.0001708694937 | E34: 1.4315117 | F34: 0.005388017344 | G34: 662.0361858 | H34: 175.0828488 | I34: 0.3545080995 | J34: 0.02458857338 | K34: 7.910238294 | L34: -2096.056423 | M34: -3650.464959
A35: 257.0526316 | B35: 126.2222222 | C35: 117.2015794 | D35: 0.0001493026653 | E35: 1.413984351 | F35: 0.005176192375 | G35: 671.128998 | H35: 178.6458757 | I35: 0.3918417282 | J35: 0.02453829559 | K35: 8.218993617 | L35: -2124.787233 | M35: -3720.722342
A36: 257.0526316 | B36: 115.3333333 | C36: 119.2067845 | D36: 0.0001302718685 | E36: 1.397693478 | F36: 0.004965384658 | G36: 680.0535922 | H36: 182.8521136 | I36: 0.4285997534 | J36: 0.02455476423 | K36: 8.51900294 | L36: -2153.659165 | M36: -3788.80731
A37: 257.0526316 | B37: 104.4444444 | C37: 121.5899902 | D37: 0.0001136088981 | E37: 1.381709441 | F37: 0.004755351657 | G37: 689.2520741 | H37: 187.767404 | I37: 0.4719741234 | J37: 0.02464823409 | K37: 8.805077226 | L37: -2182.700925 | M37: -3854.656825
A38: 257.0526316 | B38: 93.55555556 | C38: 124.370906 | D38: 9.917312879e-05 | E38: 1.366962192 | F38: 0.004545909931 | G38: 698.2625887 | H38: 193.4752573 | I38: 0.5255234901 | J38: 0.02483265327 | K38: 9.07992115 | L38: -2211.945474 | M38: -3918.171358
A39: 257.0526316 | B39: 82.66666667 | C39: 127.5714749 | D39: 8.684869431e-05 | E39: 1.353896672 | F39: 0.004336959205 | G39: 706.8330357 | H39: 200.0796774 | I39: 0.585041313 | J39: 0.02512685925 | K39: 9.357497088 | L39: -2241.428415 | M39: -3979.205386
A40: 257.0526316 | B40: 71.77777778 | C40: 131.2144351 | D40: 7.654467315e-05 | E40: 1.342378654 | F40: 0.004128520112 | G40: 715.0012355 | H40: 207.7083041 | I40: 0.6519454146 | J40: 0.02555627672 | K40: 9.620292718 | L40: -2271.185436 | M40: -4037.554197
A41: 257.0526316 | B41: 60.88888889 | C41: 135.3208436 | D41: 6.819798919e-05 | E41: 1.332294787 | F41: 0.003920789892 | G41: 722.8001195 | H41: 216.5152552 | I41: 0.728652252 | J41: 0.02615533857 | K41: 9.864524622 | L41: -2301.248033 | M41: -4092.937434
A42: 257.0526316 | B42: 50 | C42: 139.9061574 | D42: 6.178033285e-05 | E42: 1.323539342 | F42: 0.003714221211 | G42: 730.2613619 | H42: 226.6826263 | I42: 0.8008199568 | J42: 0.02697084877 | K42: 10.08828856 | L42: -2331.636917 | M42: -4144.978237
A43: 242.7368421 | B43: 148 | C43: 105.7385174 | D43: 0.0001823383714 | E43: 1.42827589 | F43: 0.005880202726 | G43: 658.2145113 | H43: 162.3962075 | I43: 0.3357805718 | J43: 0.02385381129 | K43: 7.923831435 | L43: -2054.806341 | M43: -3590.75184
A44: 242.7368421 | B44: 137.1111111 | C44: 107.1108568 | D44: 0.0001584679491 | E44: 1.409806959 | F44: 0.005655598614 | G44: 667.5678091 | H44: 165.2434116 | I44: 0.3691525283 | J44: 0.02372140063 | K44: 8.243164827 | L44: -2083.512298 | M44: -3663.313656
A45: 242.7368421 | B45: 126.2222222 | C45: 108.8102464 | D45: 0.0001372679884 | E45: 1.392632991 | F45: 0.005432130242 | G45: 676.7292692 | H45: 168.6487665 | I45: 0.4081559008 | J45: 0.02364156372 | K45: 8.557905385 | L45: -2112.309165 | M45: -3733.85851
A46: 242.7368421 | B46: 115.3333333 | C46: 110.8520634 | D46: 0.0001185515265 | E46: 1.376755713 | F46: 0.005209464708 | G46: 685.6732479 | H46: 172.66346 | I46: 0.4465849148 | J46: 0.02362095584 | K46: 8.863507556 | L46: -2141.224364 | M46: -3802.353783
A47: 242.7368421 | B47: 104.4444444 | C47: 113.2554636 | D47: 0.0001021590525 | E47: 1.361278786 | F47: 0.004987300403 | G47: 694.8338645 | H47: 177.354044 | I47: 0.4919836275 | J47: 0.02366880127 | K47: 9.154592286 | L47: -2170.290902 | M47: -3868.739971
A48: 242.7368421 | B48: 93.55555556 | C48: 116.0430768 | D48: 8.795370697e-05 | E48: 1.347061746 | F48: 0.00476538011 | G48: 703.7727999 | H48: 182.8052256 | I48: 0.548136026 | J48: 0.02379768085 | K48: 9.433740406 | L48: -2199.546813 | M48: -3932.923573
A49: 242.7368421 | B49: 82.66666667 | C49: 119.2403913 | D49: 7.581865572e-05 | E49: 1.334514679 | F49: 0.004543514424 | G49: 712.2517909 | H49: 189.1233532 | I49: 0.6106500105 | J49: 0.02402466765 | K49: 9.714907265 | L49: -2229.033989 | M49: -3994.767396
A50: 242.7368421 | B50: 71.77777778 | C50: 122.874625 | D50: 6.565685651e-05 | E50: 1.323504392 | F50: 0.004321619693 | G50: 720.3119906 | H50: 196.4405095 | I50: 0.6810212052 | J50: 0.02437297099 | K50: 9.980175465 | L50: -2258.796074 | M50: -4054.077498
A51: 242.7368421 | B51: 60.88888889 | C51: 126.9727344 | D51: 5.739400598e-05 | E51: 1.313923368 | F51: 0.004099776516 | G51: 727.9876995 | H51: 204.9188845 | I51: 0.7618081677 | J51: 0.02487427924 | K51: 10.22542748 | L51: -2288.874852 | M51: -4110.585442
A52: 242.7368421 | B52: 50 | C52: 131.5579053 | D52: 5.098561148e-05 | E52: 1.30567699 | F52: 0.00387831628 | G52: 735.3098433 | H52: 214.7545329 | I52: 0.8380400071 | J52: 0.02557216443 | K52: 10.44838526 | L52: -2319.304114 | M52: -4163.924672
A53: 228.4210526 | B53: 148 | C53: 97.5776909 | D53: 0.0001704281174 | E53: 1.406576823 | F53: 0.006200719438 | G53: 663.8443736 | H53: 152.675565 | I53: 0.3494427428 | J53: 0.02305168399 | K53: 8.263882268 | L53: -2042.589686 | M53: -3601.658165
A54: 228.4210526 | B54: 137.1111111 | C54: 99.00450002 | D54: 0.0001469035046 | E54: 1.388491453 | F54: 0.005963283341 | G54: 673.2589019 | H54: 155.3760802 | I54: 0.3842372909 | J54: 0.02289649803 | K54: 8.589978313 | L54: -2071.354682 | M54: -3674.451841
A55: 228.4210526 | B55: 126.2222222 | C55: 100.7384668 | D55: 0.0001260030926 | E55: 1.371751411 | F55: 0.005726842247 | G55: 682.4356702 | H55: 158.5989354 | I55: 0.4249908621 | J55: 0.02278751324 | K55: 8.911258618 | L55: -2100.185234 | M55: -3745.345234
A56: 228.4210526 | B56: 115.3333333 | C56: 102.7969476 | D56: 0.0001075522049 | E56: 1.356344639 | F56: 0.005491009246 | G56: 691.3541569 | H56: 162.3950286 | I56: 0.4651826049 | J56: 0.02273059673 | K56: 9.223038134 | L56: -2129.111936 | M56: -3814.307246
A57: 228.4210526 | B57: 104.4444444 | C57: 105.2012168 | D57: 9.139879881e-05 | E57: 1.341402989 | F57: 0.0052554129 | G57: 700.4432326 | H57: 166.8305108 | I57: 0.5127253184 | J57: 0.02273391812 | K57: 9.519743318 | L57: -2158.171456 | M57: -3881.282408
A58: 228.4210526 | B58: 93.55555556 | C58: 107.9763575 | D58: 7.740867658e-05 | E58: 1.327718442 | F58: 0.005019708406 | G58: 709.2889161 | H58: 171.9899203 | I58: 0.5716467044 | J58: 0.02280865027 | K58: 9.803825123 | L58: -2187.406294 | M58: -3946.184257
A59: 228.4210526 | B59: 82.66666667 | C59: 111.1509265 | D59: 6.546255401e-05 | E59: 1.315671243 | F59: 0.004783598913 | G59: 717.6655944 | H59: 177.9802136 | I59: 0.6373709981 | J59: 0.02297017132 | K59: 10.08923284 | L59: -2216.864062 | M59: -4008.886261
A60: 228.4210526 | B60: 71.77777778 | C60: 114.7562008 | D60: 5.545544172e-05 | E60: 1.305134043 | F60: 0.004546871711 | G60: 725.61565 | H60: 184.9357892 | I60: 0.7114776051 | J60: 0.02323902472 | K60: 10.35762553 | L60: -2246.595959 | M60: -4069.208988
A61: 228.4210526 | B61: 60.88888889 | C61: 118.8245853 | D61: 4.729909084e-05 | E61: 1.296008901 | F61: 0.004309456419 | G61: 733.1728215 | H61: 193.0244158 | I61: 0.796683095 | J61: 0.02364406264 | K61: 10.6045255 | L61: -2276.653719 | M61: -4126.901767
A62: 228.4210526 | B62: 50 | C62: 123.3867226 | D62: 4.092856002e-05 | E62: 1.288215556 | F62: 0.004071515857 | G62: 740.3654195 | H62: 202.4534304 | I62: 0.8773611064 | J62: 0.02422517449 | K62: 10.82723729 | L62: -2307.084315 | M62: -4181.617386
A63: 214.1052632 | B63: 148 | C63: 89.74865207 | D63: 0.0001594223355 | E63: 1.385230432 | F63: 0.00657122248 | G63: 669.6508932 | H63: 142.9486405 | I63: 0.3634995106 | J63: 0.02229029302 | K63: 8.618610051 | L63: -2030.760202 | M63: -3610.694776
A64: 214.1052632 | B64: 137.1111111 | C64: 91.20957653 | D64: 0.0001361587431 | E64: 1.367619486 | F64: 0.006319363277 | G64: 679.0682101 | H64: 145.4811956 | I64: 0.3997806503 | J64: 0.02211268969 | K64: 8.952050551 | L64: -2059.552897 | M64: -3683.784432
A65: 214.1052632 | B65: 126.2222222 | C65: 92.95897801 | D65: 0.0001154937889 | E65: 1.351379639 | F65: 0.006068396547 | G65: 688.2106668 | H65: 148.4989788 | I65: 0.4423713808 | J65: 0.02197530422 | K65: 9.280492899 | L65: -2088.386569 | M65: -3755.084388
A66: 214.1052632 | B66: 115.3333333 | C66: 95.0157638 | D66: 9.726410864e-05 | E66: 1.336479581 | F66: 0.005817873001 | G66: 697.0668775 | H66: 152.0516832 | I66: 0.4844301831 | J66: 0.02188322432 | K66: 9.599113749 | L66: -2117.294365 | M66: -3824.564768
A67: 214.1052632 | B67: 104.4444444 | C67: 97.40288163 | D67: 8.132435108e-05 | E67: 1.322082373 | F67: 0.005567340836 | G67: 706.0593004 | H67: 156.2039168 | I67: 0.5342523927 | J67: 0.02184355098 | K67: 9.902141835 | L67: -2146.315969 | M67: -3892.174156
A68: 214.1052632 | B68: 93.55555556 | C68: 100.1474193 | D68: 6.754213697e-05 | E68: 1.308917975 | F68: 0.005316354016 | G68: 714.797567 | H68: 161.0385573 | I68: 0.5961309616 | J68: 0.02186604094 | K68: 10.19189255 | L68: -2175.497721 | M68: -3957.833966
A69: 214.1052632 | B69: 82.66666667 | C69: 103.2805416 | D69: 5.579477613e-05 | E69: 1.29734174 | F69: 0.005064489968 | G69: 723.0672357 | H69: 166.6612191 | I69: 0.6653088124 | J69: 0.02196404261 | K69: 10.48231011 | L69: -2204.892363 | M69: -4021.430211
A70: 214.1052632 | B70: 71.77777778 | C70: 106.8370905 | D70: 4.596801774e-05 | E70: 1.287235914 | F70: 0.004811381518 | G70: 730.9100106 | H70: 173.2060766 | I70: 0.7434596208 | J70: 0.02215592564 | K70: 10.75461675 | L70: -2234.558079 | M70: -4082.801414
A71: 214.1052632 | B71: 60.88888889 | C71: 110.8544799 | D71: 3.795769297e-05 | E71: 1.278515037 | F71: 0.004556771162 | G71: 738.3573581 | H71: 180.8432324 | I71: 0.8334752629 | J71: 0.02246717887 | K71: 11.00394602 | L71: -2264.5562 | M71: -4141.720522
A72: 214.1052632 | B72: 50 | C72: 115.3704216 | D72: 3.167509462e-05 | E72: 1.271115342 | F72: 0.00430060035 | G72: 745.4334569 | H72: 189.7874368 | I72: 0.9190458297 | J72: 0.02293361014 | K72: 11.2271413 | L72: -2294.946783 | M72: -4197.868732
A73: 199.7894737 | B73: 148 | C73: 82.22331578 | D73: 0.0001493166688 | E73: 1.364307294 | F73: 0.007002726559 | G73: 675.5867694 | H73: 133.2164194 | I73: 0.3779656666 | J73: 0.02156807391 | K73: 8.989513965 | L73: -2019.287741 | M73: -3617.741196
A74: 199.7894737 | B74: 137.1111111 | C74: 83.69981994 | D74: 0.0001262292748 | E74: 1.347245085 | F74: 0.006734546232 | G74: 684.9525105 | H74: 135.562372 | I74: 0.4158024664 | J74: 0.02136870293 | K74: 9.330950872 | L74: -2048.0786 | M74: -3691.189442
A75: 199.7894737 | B75: 126.2222222 | C75: 85.44706236 | D75: 0.0001057367098 | E75: 1.331548289 | F75: 0.006467207698 | G75: 694.0198563 | H75: 138.355252 | I75: 0.4603281701 | J75: 0.02120398659 | K75: 9.667257906 | L75: -2076.886275 | M75: -3762.951102
A76: 199.7894737 | B76: 115.3333333 | C76: 87.48508409 | D76: 8.768650415e-05 | E76: 1.317169829 | F76: 0.006200191303 | G76: 702.7863004 | H76: 141.6426851 | I76: 0.5043730491 | J76: 0.02107824655 | K76: 9.993477866 | L76: -2105.74581 | M76: -3832.996521
A77: 199.7894737 | B77: 104.4444444 | C77: 89.83808648 | D77: 7.19395705e-05 | E77: 1.303309618 | F77: 0.005932954878 | G77: 711.6651078 | H77: 145.4865928 | I77: 0.5566292052 | J77: 0.02099753821 | K77: 10.30364021 | L77: -2134.699249 | M77: -3901.277957
A78: 199.7894737 | B78: 93.55555556 | C78: 92.53471405 | D78: 5.836492524e-05 | E78: 1.290641289 | F78: 0.005664938265 | G78: 720.2883851 | H78: 149.9666533 | I78: 0.6216795805 | J78: 0.02097020555 | K78: 10.59992012 | L78: -2163.796099 | M78: -3967.725059
A79: 199.7894737 | B79: 82.66666667 | C79: 95.60824868 | D79: 4.68360104e-05 | E79: 1.279499226 | F79: 0.005395575907 | G79: 728.4515826 | H79: 155.185039 | I79: 0.6945895249 | J79: 0.02100770498 | K79: 10.89625953 | L79: -2193.093524 | M79: -4032.237807
A80: 199.7894737 | B80: 71.77777778 | C80: 99.09656297 | D80: 3.722886925e-05 | E80: 1.269777908 | F80: 0.005124322023 | G80: 736.1941413 | H80: 161.2728317 | I80: 0.777140663 | J80: 0.02112587908 | K80: 11.17343583 | L80: -2222.656006 | M80: -4094.675534
A81: 199.7894737 | B81: 60.88888889 | C81: 103.0415422 | D81: 2.942275483e-05 | E81: 1.261406128 | F81: 0.00485069647 | G81: 743.5439277 | H81: 168.3985779 | I81: 0.8724211987 | J81: 0.0213468646 | K81: 11.42616818 | L81: -2252.553905 | M81: -4154.83995
A82: 199.7894737 | B82: 50 | C82: 107.4874836 | D82: 2.330389401e-05 | E82: 1.254337831 | F82: 0.004574365204 | G82: 750.5198089 | H82: 176.7793149 | I82: 0.9634129743 | J82: 0.02170205078 | K82: 11.65079402 | L82: -2282.860081 | M82: -4212.449385
A83: 185.4736842 | B83: 148 | C83: 74.97644473 | D83: 0.0001401249802 | E83: 1.343876099 | F83: 0.007509693802 | G83: 681.6029053 | H83: 123.4828199 | I83: 0.3928577209 | J83: 0.02088469671 | K83: 9.378326089 | L83: -2008.14446 | M83: -3622.642297
A84: 185.4736842 | B84: 137.1111111 | C84: 76.45150458 | D84: 0.0001171252899 | E84: 1.327410223 | F84: 0.00722288349 | G84: 690.8725107 | H84: 125.6265158 | I84: 0.4323282304 | J84: 0.02066445486 | K84: 9.728491499 | L84: -2036.905484 | M84: -3696.511345
A85: 185.4736842 | B85: 126.2222222 | C85: 78.18024831 | D85: 9.674016149e-05 | E85: 1.312275273 | F85: 0.006936934568 | G85: 699.8341085 | H85: 128.1779233 | I85: 0.4788989838 | J85: 0.02047373854 | K85: 10.07345986 | L85: -2065.659212 | M85: -3768.787412
A86: 185.4736842 | B86: 115.3333333 | C86: 80.183474 | D86: 7.882788757e-05 | E86: 1.298414608 | F86: 0.006651249567 | G86: 708.4921391 | H86: 131.1817941 | I86: 0.5250675995 | J86: 0.02031613732 | K86: 10.40814665 | L86: -2094.441946 | M86: -3839.439725
A87: 185.4736842 | B87: 104.4444444 | C87: 82.48623128 | D87: 6.325553824e-05 | E87: 1.285070681 | F87: 0.006365186782 | G87: 717.2474373 | H87: 134.6962713 | I87: 0.5799350415 | J87: 0.02019669902 | K87: 10.72638315 | L87: -2123.297409 | M87: -3908.423419
A88: 185.4736842 | B88: 93.55555556 | C88: 85.11826668 | D88: 4.989349127e-05 | E88: 1.272865568 | F88: 0.006078060428 | G88: 725.7535937 | H88: 138.7963227 | I88: 0.6484004568 | J88: 0.02012239129 | K88: 11.03020107 | L88: -2152.277521 | M88: -3975.676275
A89: 185.4736842 | B89: 82.66666667 | C89: 88.11445585 | D89: 3.861151155e-05 | E89: 1.262115346 | F89: 0.005789146941 | G89: 733.8150666 | H89: 143.5785491 | I89: 0.7253633997 | J89: 0.02010282414 | K89: 11.33354455 | L89: -2181.443054 | M89: -4041.113018
A90: 185.4736842 | B90: 71.77777778 | C90: 91.51511012 | D90: 2.927665266e-05 | E90: 1.252728244 | F90: 0.005497701185 | G90: 741.4678462 | H90: 149.167902 | I90: 0.8127265743 | J90: 0.0201513208 | K90: 11.61674647 | L90: -2210.863927 | M90: -4104.615851
A91: 185.4736842 | B91: 60.88888889 | C91: 95.36591484 | D91: 2.175349158e-05 | E91: 1.244647977 | F91: 0.005202989817 | G91: 748.7353007 | H91: 155.7270243 | I91: 0.913806866 | J91: 0.02028673006 | K91: 11.8740923 | L91: -2240.618671 | M91: -4166.019241
A92: 185.4736842 | B92: 50 | C92: 99.71711649 | D92: 1.590713645e-05 | E92: 1.237846481 | F92: 0.004904355057 | G92: 755.6301909 | H92: 163.4690776 | I92: 1.010849733 | J92: 0.02053557497 | K92: 12.10137119 | L92: -2270.792348 | M92: -4225.085835
A93: 171.1578947 | B93: 148 | C93: 67.98525316 | D93: 0.0001318836333 | E93: 1.323989638 | F93: 0.008111474893 | G93: 687.6555419 | H93: 113.7546302 | I93: 0.4081985678 | J93: 0.02023922053 | K93: 9.787074145 | L93: -1997.30439 | M93: -3625.197929
A94: 171.1578947 | B94: 137.1111111 | C94: 69.44304432 | D94: 0.0001088749755 | E94: 1.30814058 | F94: 0.00780316395 | G94: 696.7956187 | H94: 115.6838114 | I94: 0.4493924834 | J94: 0.01999925833 | K94: 10.14679413 | L94: -2026.00881 | M94: -3699.550599
A95: 171.1578947 | B95: 126.2222222 | C95: 71.13794992 | D95: 8.852639049e-05 | E95: 1.293565398 | F95: 0.007495829248 | G95: 705.6303764 | H95: 117.9809562 | I95: 0.4981337541 | J95: 0.0197841379 | K95: 10.50132969 | L95: -2054.681581 | M95: -3772.392271
A96: 171.1578947 | B96: 115.3333333 | C96: 73.09117348 | D96: 7.070709954e-05 | E96: 1.280203903 | F96: 0.007188788628 | G96: 714.1689102 | H96: 120.6872363 | I96: 0.546584386 | J96: 0.01959676702 | K96: 10.84547883 | L96: -2083.359617 | M96: -3843.689308
A97: 171.1578947 | B97: 104.4444444 | C97: 75.32821802 | D97: 5.529050587e-05 | E97: 1.267345822 | F97: 0.006881292705 | G97: 722.7964634 | H97: 123.8560389 | I97: 0.6042657098 | J97: 0.01944124489 | K97: 11.17287922 | L97: -2112.087596 | M97: -3913.398523
A98: 171.1578947 | B98: 93.55555556 | C98: 77.87946825 | D98: 4.214869685e-05 | E98: 1.255565167 | F98: 0.006572520461 | G98: 731.1875154 | H98: 127.5562332 | I98: 0.6764254101 | J98: 0.01932325033 | K98: 11.48541762 | L98: -2140.919029 | M98: -3981.465256
A99: 171.1578947 | B99: 82.66666667 | C99: 80.78083392 | D99: 3.114872189e-05 | E99: 1.245161137 | F99: 0.006261578747 | G99: 739.1551148 | H99: 131.8768362 | I99: 0.7578109456 | J99: 0.01925061686 | K99: 11.79704624 | L99: -2169.917338 | M99: -4047.819107
A100: 171.1578947 | B100: 71.77777778 | C100: 84.07438154 | D100: 2.215138826e-05 | E100: 1.236056157 | F100: 0.005947508561 | G100: 746.7310453 | H100: 136.9336941 | I100: 0.8504661747 | J100: 0.01923424435 | K100: 12.0876679 | L100: -2199.15678 | M100: -4112.366167
A101: 171.1578947 | B101: 60.88888889 | C101: 87.80881358 | D101: 1.501447883e-05 | E101: 1.228208643 | F101: 0.005629304332 | G101: 753.933675 | H101: 142.8790919 | I101: 0.9579732904 | J101: 0.01928949902 | K101: 12.35112242 | L101: -2228.72291 | M101: -4174.975897
A102: 171.1578947 | B102: 50 | C102: 92.03939429 | D102: 9.603593286e-06 | E102: 1.22160761 | F102: 0.00530595891 | G102: 760.769381 | H102: 149.9155544 | I102: 1.061827716 | J102: 0.01943848669 | K102: 12.5826213 | L102: -2258.711794 | M102: -4235.460198
A103: 156.8421053 | B103: 148 | C103: 61.22911216 | D103: 0.0001246585529 | E103: 1.304680588 | F103: 0.008834544427 | G103: 693.7093808 | H103: 104.0413218 | I103: 0.4240218488 | J103: 0.01963086778 | K103: 10.21816574 | L103: -1986.743056 | M103: -3625.148054
A104: 156.8421053 | B104: 137.1111111 | C104: 62.65474358 | D104: 0.0001015296904 | E104: 1.289445681 | F104: 0.008501075669 | G104: 702.6968107 | H104: 105.7474915 | I104: 0.4670421737 | J104: 0.01937243934 | K104: 10.5883748 | L104: -2015.365092 | M104: -3700.049613
A105: 156.8421053 | B105: 126.2222222 | C105: 64.30124407 | D105: 8.113499961e-05 | E105: 1.275411805 | F105: 0.008168827577 | G105: 711.3916317 | H105: 107.7818252 | I105: 0.5180961897 | J105: 0.01913459835 | K105: 10.95350947 | L105: -2043.930652 | M105: -3773.508357
A106: 156.8421053 | B106: 115.3333333 | C106: 66.18989408 | D106: 6.335506146e-05 | E106: 1.262519993 | F106: 0.00783702689 | G106: 719.8055229 | H106: 110.1813466 | I106: 0.5690121001 | J106: 0.01891978252 | K106: 11.30826418 | L106: -2072.476606 | M106: -3845.485656
A107: 156.8421053 | B107: 104.4444444 | C107: 68.34626646 | D107: 4.80700168e-05 | E107: 1.250110824 | F107: 0.007504809389 | G107: 728.3052419 | H107: 112.9938854 | I107: 0.6297402806 | J107: 0.01873112098 | K107: 11.64609213 | L107: -2101.047827 | M107: -3915.938478
A108: 156.8421053 | B108: 93.55555556 | C108: 70.80091098 | D108: 3.515436667e-05 | E108: 1.23871246 | F108: 0.007171211339 | G108: 736.5860406 | H108: 116.2810488 | I108: 0.7059123593 | J108: 0.01857309708 | K108: 11.96873561 | L108: -2129.698503 | M108: -3984.818775
A109: 156.8421053 | B109: 82.66666667 | C109: 73.5901766 | D109: 2.447446716e-05 | E109: 1.228607583 | F109: 0.006835162971 | G109: 744.469604 | H109: 120.1225399 | I109: 0.7921478258 | J109: 0.01845189926 | K109: 12.29016156 | L109: -2158.493606 | M109: -4052.070554
A110: 156.8421053 | B110: 71.77777778 | C110: 76.75713238 | D110: 1.589183678e-05 | E110: 1.219732421 | F110: 0.006495487163 | G110: 751.9831375 | H110: 124.6224615 | I110: 0.8906573811 | J110: 0.01837614812 | K110: 12.589875 | L110: -2187.510415 | M110: -4117.623696
A111: 156.8421053 | B111: 60.88888889 | C111: 80.35250937 | D111: 9.284080943e-06 | E111: 1.212058864 | F111: 0.006150914887 | G111: 759.1399792 | H111: 129.9185988 | I111: 1.005335074 | J111: 0.01835802325 | K111: 12.86127547 | L111: -2216.839882 | M111: -4181.383234
A112: 156.8421053 | B112: 50 | C112: 84.43544394 | D112: 4.621514004e-06 | E112: 1.205591257 | F112: 0.005800149857 | G112: 765.940275 | H112: 136.1962416 | I112: 1.116923214 | J112: 0.01841509501 | K112: 13.09897996 | L112: -2246.587369 | M112: -4243.211692
A113: 142.5263158 | B113: 148 | C113: 54.68928908 | D113: 0.0001185572452 | E113: 1.285961904 | F113: 0.009716093393 | G113: 699.7387138 | H113: 94.3547292 | I113: 0.4403760211 | J113: 0.01905993427 | K113: 10.67451003 | L113: -1976.436993 | M113: -3622.150334
A114: 142.5263158 | B114: 137.1111111 | C114: 56.06855064 | D114: 9.517305422e-05 | E114: 1.271320599 | F114: 0.009352678126 | G114: 708.5587402 | H114: 95.83344134 | I114: 0.4853406496 | J114: 0.01878377084 | K114: 11.0562668 | L114: -2004.951636 | M114: -3697.671548
A115: 142.5263158 | B115: 126.2222222 | C115: 57.65263161 | D115: 7.462925556e-05 | E115: 1.257797677 | F115: 0.008990905985 | G115: 717.1066019 | H115: 97.60101306 | I115: 0.5388686467 | J115: 0.01852508361 | K115: 11.43317693 | L115: -2033.384334 | M115: -3771.802222
A116: 142.5263158 | B116: 115.3333333 | C116: 59.46258503 | D116: 5.681846723e-05 | E116: 1.245338728 | F116: 0.008629906312 | G116: 725.3949131 | H116: 99.68992289 | I116: 0.5924624789 | J116: 0.01828535883 | K116: 11.79985023 | L116: -2061.771243 | M116: -3844.496269
A117: 142.5263158 | B117: 104.4444444 | C117: 61.52368344 | D117: 4.162814528e-05 | E117: 1.233337751 | F117: 0.008268693434 | G117: 733.7693388 | H117: 102.1418711 | I117: 0.656506364 | J117: 0.01806675778 | K117: 12.14957049 | L117: -2090.156634 | M117: -3915.709061
A118: 142.5263158 | B118: 93.55555556 | C118: 63.86617108 | D118: 2.893624546e-05 | E118: 1.222278188 | F118: 0.007906155267 | G118: 741.9462509 | H118: 105.0103562 | I118: 0.7370554558 | J118: 0.01787267293 | K118: 12.4839374 | L118: -2118.594388 | M118: -3985.398015
A119: 142.5263158 | B119: 82.66666667 | C119: 66.52622574 | D119: 1.86122238e-05 | E119: 1.212425735 | F119: 0.007541043866 | G119: 749.7564294 | H119: 108.3644806 | I119: 0.8286380152 | J119: 0.01770780464 | K119: 12.81693731 | L119: -2147.149809 | M119: -4053.520617
A120: 142.5263158 | B120: 71.77777778 | C120: 69.54707113 | D120: 1.053642438e-05 | E120: 1.203729288 | F120: 0.00717197954 | G120: 757.2225055 | H120: 112.2945593 | I120: 0.9336606297 | J120: 0.01757871498 | K120: 13.12773701 | L120: -2175.90159 | M120: -4120.029794
A121: 142.5263158 | B121: 60.88888889 | C121: 72.98036392 | D121: 4.712074916e-06 | E121: 1.196172357 | F121: 0.006797533732 | G121: 764.3531121 | H121: 116.9205572 | I121: 1.056391005 | J121: 0.01749460524 | K121: 13.40931819 | L121: -2204.944105 | M121: -4184.864767
A122: 142.5263158 | B122: 50 | C122: 76.88763692 | D122: 1.573947141e-06 | E122: 1.189771818 | F122: 0.006416448407 | G122: 771.142857 | H122: 122.40491 | I122: 1.17683909 | J122: 0.01746893052 | K122: 13.65571387 | L122: -2234.389537 | M122: -4247.936907
A123: 128.2105263 | B123: 148 | C123: 48.34878134 | D123: 0.0001137491588 | E123: 1.267829237 | F123: 0.01081004872 | G123: 705.7277159 | H123: 84.70852436 | I123: 0.4573302673 | J123: 0.01852788746 | K123: 11.159695 | L123: -1966.363189 | M123: -3615.746009
A124: 128.2105263 | B124: 137.1111111 | C124: 49.66788355 | D124: 8.993662084e-05 | E124: 1.253748185 | F124: 0.01041021771 | G124: 714.371653 | H124: 85.9595631 | I124: 0.5043742138 | J124: 0.01823540149 | K124: 11.55419883 | L124: -1994.745982 | M124: -3691.968122
A125: 128.2105263 | B125: 126.2222222 | C125: 51.17584609 | D125: 6.910735124e-05 | E125: 1.240697827 | F125: 0.01001270146 | G125: 722.7695975 | H125: 87.46122631 | I125: 0.5605594291 | J125: 0.01795688483 | K125: 11.94422539 | L125: -2023.020618 | M125: -3766.834164
A126: 128.2105263 | B126: 115.3333333 | C126: 52.89321905 | D126: 5.116697929e-05 | E126: 1.228630419 | F126: 0.009616525049 | G126: 730.9338858 | H126: 89.24124343 | I126: 0.6170789863 | J126: 0.01769383126 | K126: 12.32432491 | L126: -2051.221864 | M126: -3840.28777
A127: 128.2105263 | B127: 104.4444444 | C127: 54.84462764 | D127: 3.601098695e-05 | E127: 1.216995228 | F127: 0.009220574188 | G127: 739.1866996 | H127: 91.33488258 | I127: 0.6847495986 | J127: 0.01744802753 | K127: 12.68763404 | L127: -2079.39256 | M127: -3912.28087
A128: 128.2105263 | B128: 93.55555556 | C128: 57.05956362 | D128: 2.3522191e-05 | E128: 1.206231287 | F128: 0.00882358345 | G128: 747.2662805 | H128: 93.78707718 | I128: 0.7700943414 | J128: 0.01722172732 | K128: 13.03561147 | L128: -2107.585261 | M128: -3982.775119
A129: 128.2105263 | B129: 82.66666667 | C129: 59.57338835 | D129: 1.358031107e-05 | E129: 1.19658613 | F129: 0.008424132565 | G129: 755.0133542 | H129: 96.65558947 | I129: 0.8676026008 | J129: 0.01701834532 | K129: 13.38226463 | L129: -2135.864214 | M129: -4051.740783
A130: 128.2105263 | B130: 71.77777778 | C130: 62.42863256 | D130: 6.140446475e-06 | E130: 1.188019855 | F130: 0.008020710053 | G130: 762.4462138 | H130: 100.0157408 | I130: 0.9799147492 | J130: 0.01684223279 | K130: 13.706512 | L130: -2164.307786 | M130: -4119.152459
A131: 128.2105263 | B131: 60.88888889 | C131: 65.67664527 | D131: 1.73724055e-06 | E131: 1.180525177 | F131: 0.007612205027 | G131: 769.5694578 | H131: 103.9675603 | I131: 1.111750221 | J131: 0.01670014681 | K131: 14.0009659 | L131: -2193.01139 | M131: -4184.981303
A132: 128.2105263 | B132: 50 | C132: 69.37962252 | D132: 5.269017225e-07 | E132: 1.174127926 | F132: 0.007196627889 | G132: 776.3733059 | H132: 108.6468084 | I132: 1.242440253 | J132: 0.01660184505 | K132: 14.25911918 | L132: -2222.090863 | M132: -4249.183117
A133: 113.8947368 | B133: 148 | C133: 42.19224551 | D133: 0.0001105019156 | E133: 1.250263737 | F133: 0.01219767474 | G133: 711.6708368 | H133: 75.11746724 | I133: 0.4749827443 | J133: 0.01803138293 | K133: 11.67825966 | L133: -1956.498333 | M133: -3605.305083
A134: 113.8947368 | B134: 137.1111111 | C134: 43.43752186 | D134: 8.602828276e-05 | E134: 1.236701006 | F134: 0.01175236443 | G134: 720.1336893 | H134: 76.14489339 | I134: 0.5242608499 | J134: 0.01772437523 | K134: 12.08686745 | L134: -1984.725102 | M134: -3682.327888
A135: 113.8947368 | B135: 126.2222222 | C135: 44.85569423 | D135: 6.472348392e-05 | E135: 1.224079732 | F135: 0.01131039941 | G135: 728.380831 | H135: 77.38633445 | I135: 0.5833107247 | J135: 0.01742888648 | K135: 12.49153818 | L135: -2012.816728 | M135: -3758.009722
A136: 113.8947368 | B136: 115.3333333 | C136: 46.46656394 | D136: 4.650757982e-05 | E136: 1.212360014 | F136: 0.01087069196 | G136: 736.4234854 | H136: 78.86476879 | I136: 0.643047754 | J136: 0.01714554809 | K136: 12.88679527 | L136: -2040.805909 | M136: -3832.280685
A137: 113.8947368 | B137: 104.4444444 | C137: 48.29380496 | D137: 3.128500318e-05 | E137: 1.201047883 | F137: 0.01043198943 | G137: 744.5580552 | H137: 80.60902254 | I137: 0.7147068248 | J137: 0.01687554319 | K137: 13.26565861 | L137: -2068.733232 | M137: -3905.087237
A138: 113.8947368 | B138: 93.55555556 | C138: 50.36573075 | D138: 1.894511268e-05 | E138: 1.19053765 | F138: 0.009992866339 | G138: 752.545749 | H138: 82.65542112 | I138: 0.8053311596 | J138: 0.01662052886 | K138: 13.62944666 | L138: -2096.648845 | M138: -3976.394396
A139: 113.8947368 | B139: 82.66666667 | C139: 52.71630625 | D139: 9.392763864e-06 | E139: 1.181057243 | F139: 0.009551748408 | G139: 760.2383303 | H139: 85.05028179 | I139: 0.909444381 | J139: 0.01638282449 | K139: 13.99217365 | L139: -2124.614548 | M139: -4046.184688
A140: 113.8947368 | B140: 71.77777778 | C140: 55.38649739 | D140: 2.858930571e-06 | E140: 1.172576211 | F140: 0.00910728518 | G140: 767.6502097 | H140: 87.85365329 | I140: 1.029963881 | J140: 0.01616576623 | K140: 14.33264516 | L140: -2152.706448 | M140: -4114.45367
A141: 113.8947368 | B141: 60.88888889 | C141: 58.42607637 | D141: 5.902590056e-07 | E141: 1.165093843 | F141: 0.008659025067 | G141: 774.7828386 | H141: 91.14497616 | I141: 1.172162039 | J141: 0.01597407097 | K141: 14.6431813 | L141: -2181.018346 | M141: -4181.202112
A142: 113.8947368 | B142: 50 | C142: 61.89601811 | D142: 2.175451306e-07 | E142: 1.158640927 | F142: 0.008201422631 | G142: 781.6235299 | H142: 95.03182848 | I142: 1.314797468 | J142: 0.01581402653 | K142: 14.91681783 | L142: -2209.666026 | M142: -4246.42491
A143: 99.57894737 | B143: 148 | C143: 36.20605789 | D143: 0.000109248843 | E143: 1.233234341 | F143: 0.01400741254 | G143: 717.5742056 | H143: 65.59637359 | I143: 0.4934729064 | J143: 0.01756955493 | K143: 12.23613678 | L143: -1946.817631 | M143: -3589.933695
A144: 99.57894737 | B144: 137.1111111 | C144: 37.36359656 | D144: 8.378618101e-05 | E144: 1.220142555 | F144: 0.01350335656 | G144: 725.8522413 | H144: 66.40843418 | I144: 0.5451637834 | J144: 0.01724996579 | K144: 12.66037754 | L144: -1974.864102 | M144: -3667.888716
A145: 99.57894737 | B145: 126.2222222 | C145: 38.67795289 | D145: 6.17289175e-05 | E145: 1.207903735 | F145: 0.01300421487 | G145: 733.9477602 | H145: 67.40001823 | I145: 0.607313979 | J145: 0.01693946121 | K145: 13.08143011 | L145: -2002.747722 | M145: -3744.497444
A146: 99.57894737 | B146: 115.3333333 | C146: 40.16797493 | D146: 4.30139454e-05 | E146: 1.196486424 | F146: 0.01250877525 | G146: 741.8703147 | H146: 68.58955426 | I146: 0.6706138287 | J146: 0.01663852372 | K146: 13.49383282 | L146: -2030.498449 | M146: -3819.6722
A147: 99.57894737 | B147: 104.4444444 | C147: 41.85612252 | D147: 2.755591444e-05 | E147: 1.185454829 | F147: 0.01201563103 | G147: 749.8882169 | H147: 69.99969849 | I147: 0.7466870238 | J147: 0.01634787278 | K147: 13.89053064 | L147: -2058.15379 | M147: -3893.351705
A148: 99.57894737 | B148: 93.55555556 | C148: 43.76917521 | D148: 1.525258045e-05 | E148: 1.17515795 | F148: 0.01152318329 | G148: 757.7869675 | H148: 71.65854188 | I148: 0.8431512321 | J148: 0.01606853988 | K148: 14.27269534 | L148: -2085.760426 | M148: -3965.503704
A149: 99.57894737 | B149: 82.66666667 | C149: 45.9391817 | D149: 6.065586194e-06 | E149: 1.165802504 | F149: 0.01102975221 | G149: 765.4306692 | H149: 73.60145846 | I149: 0.954670888 | J149: 0.01580203864 | K149: 14.65430769 | L149: -2113.376293 | M149: -4036.123393
A150: 99.57894737 | B150: 71.77777778 | C150: 48.40475906 | D150: 1.042943095e-06 | E150: 1.15736588 | F150: 0.01053509119 | G150: 772.8303633 | H150: 75.87387994 | I150: 1.084491903 | J150: 0.01555022961 | K150: 15.01424985 | L150: -2141.073282 | M150: -4105.227756
A151: 99.57894737 | B151: 60.88888889 | C151: 51.21289445 | D151: 2.475917009e-07 | E151: 1.149851426 | F151: 0.01003675549 | G151: 779.9853244 | H151: 78.53546911 | I151: 1.238560121 | J151: 0.01531610096 | K151: 15.34465903 | L151: -2168.940813 | M151: -4172.846302
A152: 99.57894737 | B152: 50 | C152: 54.42146273 | D152: 9.966990912e-08 | E152: 1.143290922 | F152: 0.00952687028 | G152: 786.8815895 | H152: 81.66651117 | I152: 1.395250121 | J152: 0.01510380596 | K152: 15.63823984 | L152: -2197.090611 | M152: -4239.008944
A153: 85.26315789 | B153: 148 | C153: 30.3786583 | D153: 0.0001107240007 | E153: 1.21669917 | F153: 0.01645493047 | G153: 723.4593321 | H153: 56.15870995 | I153: 0.5129999198 | J153: 0.01714236761 | K153: 12.84141714 | L153: -1937.292916 | M153: -3568.306624
A154: 85.26315789 | B154: 137.1111111 | C154: 31.43381423 | D154: 8.378786388e-05 | E154: 1.204027562 | F154: 0.01587161922 | G154: 731.5474383 | H154: 56.76763279 | I154: 0.5673076308 | J154: 0.01681157667 | K154: 13.28299716 | L154: -1965.134081 | M154: -3647.379366
A155: 85.26315789 | B155: 126.2222222 | C155: 32.62943566 | D155: 6.055696506e-05 | E155: 1.192122319 | F155: 0.01529564486 | G155: 739.488381 | H155: 57.52408952 | I155: 0.6328257931 | J155: 0.01648802571 | K155: 13.72240002 | L155: -1992.78411 | M155: -3725.079866
A156: 85.26315789 | B156: 115.3333333 | C156: 33.98325006 | D156: 4.098908602e-05 | E156: 1.180960716 | F156: 0.01472565471 | G156: 747.2896745 | H156: 58.44234929 | I156: 0.7001028942 | J156: 0.01617195704 | K156: 14.15423266 | L156: -2020.269561 | M156: -3801.296308
A157: 85.26315789 | B157: 104.4444444 | C157: 35.51630269 | D157: 2.5011439e-05 | E157: 1.170166815 | F157: 0.0141600614 | G157: 755.1890598 | H157: 59.5394328 | I157: 0.7810927754 | J157: 0.01586374262 | K157: 14.57142044 | L157: -2047.624049 | M157: -3875.956244
A158: 85.26315789 | B158: 93.55555556 | C158: 37.25356925 | D158: 1.253141737e-05 | E158: 1.160043662 | F158: 0.01359706256 | G158: 762.9977928 | H158: 60.83593633 | I158: 0.8840485365 | J158: 0.01556392318 | K158: 14.97496785 | L158: -2074.889772 | M158: -3949.029509
A159: 85.26315789 | B159: 82.66666667 | C159: 39.2247826 | D159: 3.629463614e-06 | E159: 1.150775295 | F159: 0.01303499443 | G159: 770.5937233 | H159: 62.35732293 | I159: 1.003933612 | J159: 0.01527333172 | K159: 15.3787315 | L159: -2102.119444 | M159: -4020.525485
A160: 85.26315789 | B160: 71.77777778 | C160: 41.46558348 | D160: 4.152681881e-07 | E160: 1.14234575 | F160: 0.01247559372 | G160: 777.9849773 | H160: 64.13585636 | I160: 1.144365673 | J160: 0.01499294448 | K160: 15.76193066 | L160: -2129.378861 | M160: -4090.485129
A161: 85.26315789 | B161: 60.88888889 | C161: 44.01916004 | D161: 1.191849321e-07 | E161: 1.134760471 | F161: 0.01191081484 | G161: 785.1695373 | H161: 66.2134684 | I161: 1.312118582 | J161: 0.01472445788 | K161: 16.11666182 | L161: -2156.750371 | M161: -4158.968741
A162: 85.26315789 | B162: 50 | C162: 46.93862079 | D162: 4.682261695e-08 | E162: 1.128048886 | F162: 0.01133356572 | G162: 792.1337072 | H162: 68.64606154 | I162: 1.485484684 | J162: 0.01447023106 | K162: 16.43546682 | L162: -2184.337665 | M162: -4226.040783
A163: 70.94736842 | B163: 148 | C163: 24.70141121 | D163: 0.000116253572 | E163: 1.200605404 | F163: 0.01993227648 | G163: 729.3719426 | H163: 46.81456487 | I163: 0.5338307483 | J163: 0.01674947772 | K163: 13.50578789 | L163: -1927.889272 | M163: -3538.339051
A164: 70.94736842 | B164: 137.1111111 | C164: 25.63814765 | D164: 8.709056848e-05 | E164: 1.188301039 | F164: 0.01923565004 | G164: 737.2602274 | H164: 47.23630442 | I164: 0.590985275 | J164: 0.01640884884 | K164: 13.96656336 | L164: -1955.498241 | M164: -3618.808422
A165: 70.94736842 | B165: 126.2222222 | C165: 26.69844867 | D165: 6.201340009e-05 | E165: 1.176678193 | F165: 0.01855023857 | G165: 745.038636 | H165: 47.77631561 | I165: 0.6601689719 | J165: 0.01607398828 | K165: 14.42651986 | L165: -1982.887496 | M165: -3697.860994
A166: 70.94736842 | B166: 115.3333333 | C166: 27.89877824 | D166: 4.100949107e-05 | E166: 1.165723071 | F166: 0.01787453095 | G166: 752.7123925 | H166: 48.44527292 | I166: 0.7319163147 | J166: 0.01574498051 | K166: 14.88040286 | L166: -2010.079511 | M166: -3775.349403
A167: 70.94736842 | B167: 104.4444444 | C167: 29.25862481 | D167: 2.402361232e-05 | E167: 1.155121779 | F167: 0.01720671536 | G167: 760.4858779 | H167: 49.25531998 | I167: 0.8184121552 | J167: 0.01542195439 | K167: 15.32119223 | L167: -2037.103234 | M167: -3851.183237
A168: 70.94736842 | B168: 93.55555556 | C168: 30.80099515 | D168: 1.097236718e-05 | E168: 1.145130994 | F168: 0.01654471957 | G168: 768.1975833 | H168: 50.22059218 | I168: 0.9286174881 | J168: 0.01510517405 | K168: 15.74967731 | L168: -2063.99542 | M168: -3925.332434
A169: 70.94736842 | B169: 82.66666667 | C169: 32.55307224 | D169: 2.125069096e-06 | E169: 1.135910995 | F169: 0.01588709835 | G169: 775.7405178 | H169: 51.3580723 | I169: 1.05802305 | J169: 0.01479474928 | K169: 16.17940786 | L169: -2090.802324 | M169: -3997.822833
A170: 70.94736842 | B170: 71.77777778 | C170: 34.54713555 | D170: 2.044019373e-07 | E170: 1.127452073 | F170: 0.01523743728 | G170: 783.120144 | H170: 52.68886859 | I170: 1.210633647 | J170: 0.01449124622 | K170: 16.5902951 | L170: -2117.581959 | M170: -4068.724675
A171: 70.94736842 | B171: 60.88888889 | C171: 36.82189742 | D171: 6.137659713e-08 | E171: 1.119760829 | F171: 0.01458076961 | G171: 790.3337646 | H171: 54.24006536 | I171: 1.394243962 | J171: 0.01419537401 | K171: 16.97456888 | L171: -2144.407189 | M171: -4138.135611
A172: 70.94736842 | B172: 50 | C172: 39.42449462 | D172: 2.121495407e-08 | E172: 1.112862322 | F172: 0.01391143077 | G172: 797.3691374 | H172: 56.04740653 | I172: 1.587531853 | J172: 0.01390824514 | K172: 17.32481364 | L172: -2171.370097 | M172: -4206.160264
A173: 56.63157895 | B173: 148 | C173: 19.17055046 | D173: 0.0001284627123 | E173: 1.184886135 | F173: 0.02523422732 | G173: 735.4033582 | H173: 37.56736702 | I173: 0.5561501657 | J173: 0.0163910986 | K173: 14.24755834 | L173: -1918.558487 | M173: -3496.469262
A174: 56.63157895 | B174: 137.1111111 | C174: 19.97056605 | D174: 9.582207121e-05 | E174: 1.172895109 | F174: 0.02436183445 | G174: 743.0715697 | H174: 37.82145194 | I174: 0.6163648386 | J174: 0.01604170411 | K174: 14.7293988 | L174: -1945.904218 | M174: -3578.782439
A175: 56.63157895 | B175: 126.2222222 | C175: 20.87620076 | D175: 6.775450714e-05 | E175: 1.161500634 | F175: 0.02350726954 | G175: 750.6696639 | H175: 38.16726596 | I175: 0.6894931095 | J175: 0.01569691292 | K175: 15.21227953 | L175: -1973.001859 | M175: -3659.62532
A176: 56.63157895 | B176: 115.3333333 | C176: 21.90248542 | D176: 4.429528418e-05 | E176: 1.150698019 | F176: 0.02266886301 | G176: 758.2004193 | H176: 38.61262015 | I176: 0.7662379267 | J176: 0.01535674656 | K176: 15.69118039 | L176: -1999.869062 | M176: -3738.791283
A177: 56.63157895 | B177: 104.4444444 | C177: 23.06722796 | D177: 2.541991124e-05 | E177: 1.140238287 | F177: 0.02184451835 | G177: 765.8316267 | H177: 39.16573 | I177: 0.8588472693 | J177: 0.01502119254 | K177: 16.15923889 | L177: -2026.529305 | M177: -3816.155657
A178: 56.63157895 | B178: 93.55555556 | C178: 24.39138838 | D178: 1.10551197e-05 | E178: 1.130331801 | F178: 0.02103176237 | G178: 773.4303547 | H178: 39.83551996 | I178: 0.9771159088 | J178: 0.01469027669 | K178: 16.61693231 | L178: -2053.01301 | M178: -3891.680847
A179: 56.63157895 | B179: 82.66666667 | C179: 25.89955042 | D179: 1.551309796e-06 | E179: 1.121114662 | F179: 0.02022917305 | G179: 780.9060508 | H179: 40.63217226 | I179: 1.117370512 | J179: 0.01436380551 | K179: 17.07715353 | L179: -2079.3589 | M179: -3965.410064
A180: 56.63157895 | B180: 71.77777778 | C180: 27.62056222 | D180: 1.189761833e-07 | E180: 1.112584222 | F180: 0.01944290704 | G180: 788.2613752 | H180: 41.56794951 | I180: 1.283897303 | J180: 0.01404188789 | K180: 17.52098838 | L180: -2105.615799 | M180: -4037.450945
A181: 56.63157895 | B181: 60.88888889 | C181: 29.5884688 | D181: 3.293670282e-08 | E181: 1.10474894 | F181: 0.0186494993 | G181: 795.4930709 | H181: 42.65834639 | I181: 1.485763303 | J181: 0.01372464328 | K181: 17.94100121 | L181: -2131.845133 | M181: -4107.951494
A182: 56.63157895 | B182: 50 | C182: 31.84393831 | D182: 1.237325472e-08 | E182: 1.097629614 | F182: 0.01784359584 | G182: 802.5909121 | H182: 43.92367433 | I182: 1.702666852 | J182: 0.0134123751 | K182: 18.33005275 | L182: -2158.124512 | M182: -4177.071471
A183: 42.31578947 | B183: 148 | C183: 13.79398149 | D183: 0.0001532793495 | E183: 1.169469033 | F183: 0.03425217329 | G183: 741.7487187 | H183: 28.40741766 | I183: 0.5818728296 | J183: 0.01606827112 | K183: 15.09913933 | L183: -1909.224836 | M183: -3435.837168
A184: 42.31578947 | B184: 137.1111111 | C184: 14.43547457 | D184: 0.0001148894328 | E184: 1.157738376 | F184: 0.033071291 | G184: 749.154128 | H184: 28.51731402 | I184: 0.6455569708 | J184: 0.01571077518 | K184: 15.60339341 | L184: -1936.266972 | M184: -3520.761827
A185: 42.31578947 | B185: 126.2222222 | C185: 15.16261449 | D185: 8.169781776e-05 | E185: 1.146513576 | F185: 0.03192073195 | G185: 756.5335533 | H185: 28.69469956 | I185: 0.7232343606 | J185: 0.01535691104 | K185: 16.11136668 | L185: -1963.033877 | M185: -3604.195176
A186: 42.31578947 | B186: 115.3333333 | C186: 15.98862676 | D186: 5.383104295e-05 | E186: 1.135798873 | F186: 0.03079879803 | G186: 763.8874563 | H186: 28.94544414 | I186: 0.8058238576 | J186: 0.01500674739 | K186: 16.61842525 | L186: -1989.537384 | M186: -3685.815183
A187: 42.31578947 | B187: 104.4444444 | C187: 16.92934083 | D187: 3.13295519e-05 | E187: 1.125413445 | F187: 0.02970308457 | G187: 771.3433407 | H187: 29.2749767 | I187: 0.9055445542 | J187: 0.01466025002 | K187: 17.11802435 | L187: -2015.794543 | M187: -3765.418553
A188: 42.31578947 | B188: 93.55555556 | C188: 18.00348328 | D188: 1.415199496e-05 | E188: 1.115521569 | F188: 0.02863052855 | G188: 778.7978404 | H188: 29.6884349 | I188: 1.033706757 | J188: 0.01431735085 | K188: 17.61014816 | L188: -2041.828513 | M188: -3842.932257
A189: 42.31578947 | B189: 82.66666667 | C189: 19.23399619 | D189: 2.367477242e-06 | E189: 1.106241809 | F189: 0.02757821669 | G189: 786.1777422 | H189: 30.19101554 | I189: 1.187651903 | J189: 0.01397768342 | K189: 18.10637059 | L189: -2067.669551 | M189: -3918.407255
A190: 42.31578947 | B190: 71.77777778 | C190: 20.64611133 | D190: 8.588702886e-08 | E190: 1.097577951 | F190: 0.026558659 | G190: 793.4820562 | H190: 30.78851669 | I190: 1.371318769 | J190: 0.01364108252 | K190: 18.58960789 | L190: -2093.356239 | M190: -3991.996259
A191: 42.31578947 | B191: 60.88888889 | C191: 22.26933595 | D191: 1.884155121e-08 | E191: 1.089541583 | F191: 0.02553719914 | G191: 800.7062315 | H191: 31.48807113 | I191: 1.595761001 | J191: 0.01330730544 | K191: 19.05296749 | L191: -2118.937202 | M191: -4063.919263
A192: 42.31578947 | B192: 50 | C192: 24.13832387 | D192: 0 | E192: 1.082152584 | F192: 0.0245036184 | G192: 807.8416194 | H192: 32.29908717 | I192: 1.843406931 | J192: 0.01297617835 | K192: 0 | L192: -2144.473644 | M192: -4134.421821
A193: 28 | B193: 148 | C193: 8.459421165 | D193: 0.0002071753751 | E193: 1.153649435 | F193: 0.05284476154 | G193: 748.9082158 | H193: 19.29479882 | I193: 0.6246622839 | J193: 0.01578391116 | K193: 16.13095509 | L193: -1899.748226 | M193: -3340.491587
A194: 28 | B194: 137.1111111 | C194: 8.928907329 | D194: 0.0001583081349 | E194: 1.14220232 | F194: 0.05099437893 | G194: 755.9502812 | H194: 19.29036619 | I194: 0.6939789301 | J194: 0.01541863991 | K194: 16.65618952 | L194: -1926.422457 | M194: -3429.415761
A195: 28 | B195: 126.2222222 | C195: 9.467266 | D195: 0.0001153876478 | E195: 1.131179838 | F195: 0.04920228939 | G195: 763.0192771 | H195: 19.33008284 | I195: 0.7785461471 | J195: 0.0150558362 | K195: 17.18937797 | L195: -1952.798436 | M195: -3517.061777
A196: 28 | B196: 115.3333333 | C196: 10.08689487 | D196: 7.87576495e-05 | E196: 1.120600051 | F196: 0.04746779314 | G196: 770.1151366 | H196: 19.41908943 | I196: 0.8713317006 | J196: 0.01469584081 | K196: 17.72662072 | L196: -1978.880333 | M196: -3602.838943
A197: 28 | B197: 104.4444444 | C197: 10.8030953 | D197: 4.862477345e-05 | E197: 1.11036096 | F197: 0.04578866789 | G197: 777.3216477 | H197: 19.561477 | I197: 0.9836249494 | J197: 0.01433881771 | K197: 18.26202169 | L197: -2004.677004 | M197: -3686.324622
A198: 28 | B198: 93.55555556 | C198: 11.62860131 | D198: 2.506537931e-05 | E198: 1.100569191 | F198: 0.04416127911 | G198: 784.5655522 | H198: 19.76028601 | I198: 1.126166869 | J198: 0.01398480071 | K198: 18.79477614 | L198: -2030.202859 | M198: -3767.30093
A199: 28 | B199: 82.66666667 | C199: 12.53191021 | D199: 8.044686022e-06 | E199: 1.091126408 | F199: 0.04258071558 | G199: 791.7910559 | H199: 20.01771115 | I199: 1.299258977 | J199: 0.0136334295 | K199: 19.33387759 | L199: -2055.478556 | M199: -3845.760272
A200: 28 | B200: 71.77777778 | C200: 13.57898612 | D200: 1.282844855e-07 | E200: 1.082215306 | F200: 0.04105764123 | G200: 798.9912256 | H200: 20.33547573 | I200: 1.510042956 | J200: 0.01328444719 | K200: 19.86494307 | L200: -2080.53163 | M200: -3921.881199
... 2 more rows

Sheet Flow_regime_map_data
B1: usg | C1: usl
B2: [m/s] | C2: [m/s]
A3: Line 1 | B3: 0.1026628792 | C3: 0.001004108532
B4: 0.1054649955 | C4: 0.002613931515
B5: 0.1065868392 | C5: 0.01020590663
B6: 0.114387046 | C6: 0.040503928
B7: 0.1343175201 | C7: 0.1687867153
B8: 0.1919955286 | C8: 0.4691086055
B9: 0.3598792169 | C9: 1.09131715
B10: 1.013019224 | C10: 1.897487416
B11: 3.076935691 | C11: 2.464361605
B12: 14.45709737 | C12: 2.72358534
A13: Line 2 | B13: 3.953900423 | C13: 0.001027104145
B14: 4.114157115 | C14: 0.005283387524
B15: 4.220640769 | C15: 0.02096638486
B16: 4.669914536 | C16: 0.07191378769
B17: 6.576397973 | C17: 0.1934868202
B18: 16.41436351 | C18: 0.3418453052
B19: 40.43327568 | C19: 0.3423882928
A20: Line 3 | B20: 13.9676577 | C20: 0.001046216817
B21: 13.29565512 | C21: 0.003827932559
B22: 12.82380718 | C22: 0.02470562269
B23: 13.1355477 | C23: 0.1569029362
B24: 16.1712932 | C24: 0.3309281455
A25: Line 4 | B25: 0.009764223739 | C25: 1.499816388
B26: 0.03056735631 | C26: 1.855495738
B27: 0.1047365956 | C27: 2.186875791
B28: 0.4298440619 | C28: 2.455836733
B29: 4.346175092 | C29: 2.631100958

Sheet PT_plot_data
A1: bubble point line | C1: Dew point line | E1: critical point
A2: p | B2: T | C2: p | D2: T | E2: p | F2: T
A3: [bara] | B3: [C] | C3: [bara] | D3: [C] | E3: [bara] | F3: [C]
A4: 1220.269244 | B4: -124.5226773 | C4: 2.0265 | D4: 295.7625726 | E4: 155.7820473 | F4: 417.7978666
A5: 898.4573113 | B5: -122.4455648 | C5: 4.290100534 | D5: 328.3371037
A6: 661.5142882 | B6: -119.7579286 | C6: 8.778467569 | D6: 362.4010333
A7: 487.0583699 | B7: -116.3915011 | C7: 17.28304906 | D7: 396.0371152
A8: 358.6103278 | B8: -112.2133359 | C8: 32.79274746 | D8: 425.8771749
A9: 264.0368693 | B9: -106.8959005 | C9: 61.01098113 | D9: 445.8114092
A10: 194.4045193 | B10: -99.38700436 | C10: 77.99871776 | D10: 448.2007372
A11: 163.4316263 | B11: -92.37807182 | C11: 83.90627283 | D11: 447.9603296
A12: 149.9814748 | B12: -85.50774663 | C12: 118.4022045 | D12: 438.7514546
A13: 146.2203674 | B13: -78.42782828 | C13: 134.2750321 | D13: 431.0222647
A14: 146.216985 | B14: -78.18648305 | C14: 149.5039838 | D14: 421.961489
A15: 147.4283758 | B15: -73.35419406 | C15: 155.7820473 | D15: 417.7978666
A16: 149.6711208 | B16: -69.67543434
A17: 153.1160066 | B17: -65.60924898
A18: 156.1923987 | B18: -62.56813692
A19: 160.0767942 | B19: -59.11254476
A20: 163.2791545 | B20: -56.4554524
A21: 165.7983023 | B21: -54.44533742
A22: 168.7549787 | B22: -52.1502724
A23: 171.0733534 | B23: -50.38687561
A24: 172.8402087 | B24: -49.05933323
A25: 174.1516047 | B25: -48.0814154
A26: 175.1019094 | B26: -47.37611475
A27: 175.7764561 | B27: -46.87698421
A28: 177.2479507 | B28: -45.79193624
A29: 189.6535333 | B29: -36.73988875
A30: 198.4026255 | B30: -30.32385581
A31: 217.1302682 | B31: -16.05032968
A32: 251.4475521 | B32: 14.03432719
A33: 291.1740923 | B33: 63.58783508
A34: 312.9225485 | B34: 116.150719
A35: 317.6472467 | B35: 154.9510146
A36: 317.6582642 | B36: 156.9681545
A37: 313.4719811 | B37: 197.0889504
A38: 305.3122944 | B38: 226.8673276
A39: 292.7068865 | B39: 257.6750785
A40: 275.7253455 | B40: 289.06582
A41: 262.0970547 | B41: 310.0272455
A42: 246.7623008 | B42: 330.7727125
A43: 229.8695649 | B43: 351.0656421
A44: 217.8203177 | B44: 364.2153665
A45: 205.1937584 | B45: 376.9652706
A46: 192.0287829 | B46: 389.2248634
A47: 178.3540436 | B47: 400.8934429
A48: 164.1824709 | B48: 411.8539266
A49: 155.7820473 | B49: 417.7978666
